bitfinex/quotes_BTCUSD_20251217
["timestamp","ask_amount","ask_price","bid_price","bid_amount"]
[1765948096395,0.01730295,86697.0,86696.0,0.01928]
[1765948096598,1.32e-06,86697.0,86696.0,0.01928]
[1765948097704,1.32e-06,86697.0,86696.0,0.13287223]
[1765948098064,1.32e-06,86697.0,86696.0,0.13187223]
[1765948099207,0.00100132,86697.0,86696.0,0.13187223]
[1765948109427,0.01830295,86697.0,86696.0,0.13187223]
[1765948109634,0.01830295,86697.0,86696.0,0.01828]
[1765948109635,0.14041295,86697.0,86696.0,0.01828]
[1765948110079,0.0475,86695.0,86694.0,0.00054858]
[1765948110300,0.01730203,86695.0,86694.0,0.00054858]
[1765948110489,0.09191203,86695.0,86694.0,0.00054858]
[1765948110645,0.13941203,86695.0,86694.0,0.00054858]
[1765948110844,0.1970219,86695.0,86694.0,0.00054858]
[1765948111064,0.43011203,86695.0,86694.0,0.00054858]
[1765948111391,0.41281,86695.0,86694.0,0.00054858]
[1765948111786,0.47341987,86695.0,86694.0,0.00054858]
[1765948111991,0.47541987,86695.0,86694.0,0.00054858]
[1765948112211,0.47241987,86695.0,86694.0,0.00054858]
[1765948112397,0.41781,86695.0,86694.0,0.00054858]
[1765948113838,0.47541987,86695.0,86694.0,0.00054858]
[1765948115204,0.41781,86695.0,86694.0,0.00054858]
[1765948115355,0.47541987,86695.0,86694.0,0.00054858]
[1765948115952,0.41781,86695.0,86694.0,0.00054858]
[1765948116487,0.46782839,86695.0,86694.0,0.00054858]
[1765948117748,0.41781,86695.0,86694.0,0.00054858]
[1765948119273,0.2957,86695.0,86694.0,0.00054858]
[1765948119475,0.005,86695.0,86694.0,0.11414081]
[1765948120027,0.003,86695.0,86694.0,0.00054858]
[1765948120371,0.13825502,86695.0,86694.0,0.00054858]
[1765948121256,0.13525502,86695.0,86694.0,0.00054858]
[1765948121657,0.13725502,86695.0,86694.0,0.00054858]
[1765948124170,0.01621502,86695.0,86694.0,0.00054858]
[1765948124573,0.003,86695.0,86694.0,0.00054858]
[1765948124981,0.003,86695.0,86694.0,0.11414081]
[1765948135121,0.003,86695.0,86694.0,0.00054858]
[1765948135338,0.003,86695.0,86694.0,0.11414081]
[1765948143431,0.23369381,86695.0,86694.0,0.11414081]
[1765948144299,0.23069381,86695.0,86694.0,0.11414081]
[1765948145550,1.32e-06,86697.0,86694.0,0.00216145]
[1765948145728,1.32e-06,86697.0,86696.0,0.1152051]
[1765948146067,0.0004,86701.0,86700.0,0.11359223]
[1765948146266,0.0004,86701.0,86700.0,0.1334851]
[1765948147339,0.0004,86701.0,86700.0,0.1344851]
[1765948147744,0.0004,86701.0,86700.0,0.66970643]
[1765948147940,0.0004,86701.0,86700.0,0.4251851]
[1765948148729,0.0004,86701.0,86700.0,0.4241851]
[1765948148859,0.0004,86701.0,86700.0,0.4261851]
[1765948149202,0.0004,86701.0,86700.0,0.4281851]
[1765948150158,0.0004,86701.0,86700.0,0.6588656]
[1765948150618,0.0004,86701.0,86700.0,0.4281851]
[1765948151223,0.0004,86701.0,86700.0,0.6573856]
[1765948151420,0.0004,86701.0,86700.0,0.54379337]
[1765948151600,0.0004,86701.0,86700.0,0.6573856]
[1765948152017,0.23062996,86719.0,86718.0,0.11359223]
[1765948152213,0.23062996,86719.0,86718.0,0.13187223]
[1765948153224,0.01153136,86720.0,86719.0,0.11359223]
[1765948154567,0.23062996,86719.0,86718.0,0.13187223]
[1765948155540,0.23062996,86719.0,86718.0,0.01828]
[1765948155757,0.23062996,86719.0,86718.0,0.13187223]
[1765948156358,0.23210996,86719.0,86718.0,0.13187223]
[1765948157267,0.23310996,86719.0,86718.0,0.13187223]
[1765948157467,0.23358551,86719.0,86718.0,0.13187223]
[1765948157890,0.23458551,86719.0,86718.0,0.13187223]
[1765948159881,0.23458551,86719.0,86718.0,0.11359223]
[1765948160033,0.23458551,86719.0,86718.0,0.13187223]
[1765948161209,0.23458551,86719.0,86718.0,0.01828]
[1765948161341,0.2306406,86715.0,86714.0,0.11359223]
[1765948161547,0.2306406,86715.0,86684.0,0.23072211]
[1765948161548,0.23068316,86699.0,86698.0,0.11359223]
[1765948161756,0.23068316,86699.0,86698.0,0.13187223]
[1765948162458,0.2422142,86701.0,86700.0,0.11359223]
[1765948162824,0.01153389,86701.0,86700.0,0.11359223]
[1765948162941,0.24221173,86701.0,86700.0,0.11359223]
[1765948163633,0.01153362,86703.0,86702.0,0.11359223]
[1765948163852,0.01153349,86704.0,86703.0,0.11359223]
[1765948164669,0.01153322,86706.0,86698.0,0.03212114]
[1765948164872,0.01153322,86706.0,86705.0,0.11359223]
[1765948165072,0.01153309,86707.0,86702.0,0.06215285]
[1765948165248,0.01153269,86710.0,86701.0,0.01153389]
[1765948165249,0.01153282,86709.0,86708.0,0.11359223]
[1765948165451,0.01153282,86709.0,86708.0,0.01828]
[1765948165708,0.24218938,86709.0,86708.0,0.01828]
[1765948166644,0.24218938,86709.0,86708.0,0.01928]
[1765948167086,0.24218938,86709.0,86708.0,0.13287223]
[1765948169599,0.00025364,86712.0,86711.0,0.11359223]
[1765948172426,0.00025364,86712.0,86711.0,0.17574508]
[1765948172722,0.23090222,86712.0,86711.0,0.17574508]
[1765948173027,0.23090222,86712.0,86711.0,0.11459223]
[1765948173746,0.23090222,86712.0,86711.0,0.001]
[1765948174606,0.23090222,86712.0,86710.0,0.11359223]
[1765948175548,0.01729884,86711.0,86710.0,0.11359223]
[1765948175809,0.23090222,86712.0,86710.0,0.13187223]
[1765948176562,0.23090222,86712.0,86711.0,0.11359223]
[1765948177553,0.23065922,86708.0,86707.0,0.17574508]
[1765948177761,0.23065922,86708.0,86707.0,0.13187223]
[1765948179309,0.23065922,86708.0,86707.0,0.19402508]
[1765948179966,0.23065922,86708.0,86707.0,0.13187223]
[1765948180163,0.01153269,86710.0,86709.0,0.11359223]
[1765948180369,0.00025364,86712.0,86711.0,0.11359223]
[1765948181441,0.00125364,86712.0,86711.0,0.17588421]
[1765948181851,0.00125364,86712.0,86711.0,0.11359223]
[1765948182056,0.00125364,86712.0,86711.0,0.17688339]
[1765948182267,0.00125364,86712.0,86711.0,0.11459223]
[1765948182581,0.00125364,86712.0,86711.0,0.176886]
[1765948182782,0.00025364,86712.0,86711.0,0.11459223]
[1765948183185,0.00025364,86712.0,86711.0,0.11559223]
[1765948183392,0.00025364,86712.0,86711.0,0.11459223]
[1765948183587,0.00025364,86712.0,86711.0,0.17688819]
[1765948183783,0.00025364,86712.0,86711.0,0.11459223]
[1765948184605,0.00025364,86712.0,86711.0,0.11359223]
[1765948184818,0.01178606,86712.0,86711.0,0.11359223]
[1765948185011,0.01178606,86712.0,86711.0,0.11459223]
[1765948185132,0.00025364,86712.0,86711.0,0.11459223]
[1765948185620,0.01153096,86723.0,86715.0,0.01153203]
[1765948185753,0.2421473,86725.0,86724.0,0.11359223]
[1765948185963,0.0115307,86725.0,86724.0,0.13187223]
[1765948186176,0.01153043,86727.0,86726.0,0.11359223]
[1765948187482,0.01253043,86727.0,86726.0,0.11359223]
[1765948188031,0.01253043,86727.0,86724.0,0.08055012]
[1765948188237,0.01253043,86727.0,86726.0,0.11359223]
[1765948188658,0.01353043,86727.0,86726.0,0.11359223]
[1765948188851,0.002,86727.0,86726.0,0.11359223]
[1765948189069,0.002,86727.0,86726.0,0.17586235]
[1765948189262,0.001,86727.0,86726.0,0.11359223]
[1765948189495,0.01153003,86730.0,86726.0,0.01153056]
[1765948189642,0.01152976,86732.0,86730.0,0.11359223]
[1765948189846,0.01152976,86732.0,86731.0,0.11359223]
[1765948190273,0.24211709,86735.0,86734.0,0.11359223]
[1765948190479,0.24211709,86735.0,86734.0,0.13187223]
[1765948195340,0.01152804,86745.0,86744.0,0.11359223]
[1765948195661,0.01152883,86739.0,86738.0,0.11359223]
[1765948195870,0.01152883,86739.0,86738.0,0.13187223]
[1765948196095,0.01152883,86739.0,86738.0,0.17573285]
[1765948196303,0.02882208,86739.0,86738.0,0.19401285]
[1765948196534,0.01152883,86739.0,86738.0,0.13187223]
[1765948197297,0.01152883,86739.0,86738.0,0.13287223]
[1765948198970,0.01152883,86739.0,86738.0,0.13187223]
[1765948200389,0.0115283,86743.0,86738.0,0.13187223]
[1765948200390,0.01152777,86747.0,86740.0,0.23057291]
[1765948200567,0.03514,86782.0,86752.0,0.11359223]
[1765948200775,0.01152551,86764.0,86752.0,0.13183223]
[1765948200993,0.01152472,86770.0,86752.0,0.13183223]
[1765948201243,0.01152432,86773.0,86752.0,0.13183223]
[1765948201244,0.01152458,86771.0,86752.0,0.1547099]
[1765948201468,0.01152432,86773.0,86752.0,0.1547099]
[1765948201469,0.0016993,86753.0,86752.0,0.1547099]
[1765948201883,7.991e-05,86753.0,86752.0,0.1547099]
[1765948202301,7.991e-05,86753.0,86752.0,0.21956082]
[1765948202504,7.991e-05,86753.0,86752.0,0.20472829]
[1765948202932,7.991e-05,86753.0,86752.0,0.51126082]
[1765948203136,7.991e-05,86753.0,86752.0,0.49542829]
[1765948203336,7.991e-05,86753.0,86752.0,0.49842829]
[1765948203591,7.991e-05,86753.0,86752.0,0.53079411]
[1765948203950,7.991e-05,86753.0,86752.0,0.52779411]
[1765948204151,7.991e-05,86753.0,86752.0,0.53079411]
[1765948204980,7.991e-05,86753.0,86752.0,0.61689254]
[1765948206232,7.991e-05,86753.0,86752.0,0.59865254]
[1765948206513,7.991e-05,86753.0,86752.0,0.61689254]
[1765948207410,7.991e-05,86753.0,86752.0,0.53079411]
[1765948208919,7.991e-05,86753.0,86752.0,0.61826852]
[1765948209351,7.991e-05,86753.0,86752.0,1.07208952]
[1765948211785,3.86e-06,86753.0,86752.0,1.06908952]
[1765948212195,3.86e-06,86753.0,86752.0,1.07308952]
[1765948212410,0.0004,86768.0,86767.0,0.45431062]
[1765948212641,0.0004,86768.0,86767.0,0.49542829]
[1765948213815,0.0004,86768.0,86767.0,0.49942829]
[1765948214177,0.0004,86768.0,86767.0,0.64882829]
[1765948214577,0.0004,86768.0,86767.0,0.1587099]
[1765948215236,0.0004,86768.0,86767.0,0.1567099]
[1765948215683,0.0004,86768.0,86767.0,0.1587099]
[1765948215903,0.0004,86768.0,86767.0,0.1567099]
[1765948216225,0.0004,86768.0,86767.0,0.1557099]
[1765948216463,0.0004,86768.0,86767.0,0.1587099]
[1765948216919,0.0004,86768.0,86767.0,0.1557099]
[1765948217293,0.0004,86768.0,86767.0,0.1577099]
[1765948217965,0.00087515,86768.0,86767.0,0.1577099]
[1765948218303,0.00087515,86768.0,86767.0,0.1565099]
[1765948225598,0.23137487,86768.0,86767.0,0.1565099]
[1765948226591,0.00087515,86768.0,86767.0,0.1565099]
[1765948227641,0.00087515,86768.0,86767.0,0.1382699]
[1765948227824,0.00087515,86768.0,86767.0,0.1565099]
[1765948228024,0.00087515,86768.0,86767.0,0.1382699]
[1765948228222,0.00087515,86768.0,86767.0,0.04291767]
[1765948228412,0.00087515,86768.0,86767.0,0.1565099]
[1765948228617,0.00087515,86768.0,86767.0,0.13483223]
[1765948228618,0.00235515,86768.0,86767.0,0.13483223]
[1765948229435,0.00235515,86768.0,86767.0,0.13183223]
[1765948230340,0.23054223,86752.0,86751.0,0.02881263]
[1765948230512,0.23054223,86752.0,86751.0,0.16064486]
[1765948230870,0.23054163,86753.0,86752.0,0.11359223]
[1765948232496,0.23054163,86753.0,86752.0,0.11459223]
[1765948233583,0.23054163,86753.0,86752.0,0.001]
[1765948233810,0.23054163,86753.0,86752.0,0.11459223]
[1765948236259,0.23054163,86753.0,86752.0,0.11359223]
[1765948236820,0.24206608,86754.0,86752.0,0.11359223]
[1765948237030,0.24206608,86754.0,86753.0,0.11359223]
[1765948237229,0.23053261,86756.0,86751.0,0.05857987]
[1765948237230,0.01152658,86756.0,86755.0,0.11359223]
[1765948238832,0.24205584,86757.0,86756.0,0.11359223]
[1765948238833,0.01152644,86757.0,86756.0,0.11359223]
[1765948241079,0.01152618,86759.0,86755.0,0.01152671]
[1765948241257,0.01152618,86759.0,86758.0,0.11359223]
[1765948241759,0.00025343,86761.0,86757.0,0.01152644]
[1765948241961,0.00025343,86761.0,86760.0,0.11359223]
[1765948243923,0.00125343,86761.0,86760.0,0.11359223]
[1765948244531,0.00025343,86761.0,86760.0,0.11359223]
[1765948249388,0.01152671,86755.0,86751.0,0.54037918]
[1765948249585,0.01152671,86755.0,86749.0,0.01152751]
[1765948249586,0.24206097,86755.0,86754.0,0.11359223]
[1765948254132,0.23059539,86732.0,86731.0,0.11359223]
[1765948254362,0.23061666,86724.0,86723.0,0.11502798]
[1765948254620,0.23061666,86724.0,86723.0,0.13326798]
[1765948255398,0.24212607,86732.0,86728.0,0.11359223]
[1765948255599,0.24212607,86732.0,86731.0,0.11359223]
[1765948256240,0.24312607,86732.0,86731.0,0.11359223]
[1765948256871,0.001,86732.0,86731.0,0.11359223]
[1765948257123,0.001,86732.0,86731.0,0.34419028]
[1765948257386,0.002,86732.0,86731.0,0.34419028]
[1765948258125,0.001,86732.0,86731.0,0.34419028]
[1765948258922,0.01152697,86753.0,86752.0,0.11359223]
[1765948259121,0.01152697,86753.0,86752.0,0.13183223]
[1765948260592,0.24206654,86753.0,86752.0,0.13183223]
[1765948260752,0.24306654,86753.0,86752.0,0.13183223]
[1765948260948,0.24454654,86753.0,86752.0,0.13183223]
[1765948261438,0.24554654,86753.0,86752.0,0.13183223]
[1765948262031,0.00348,86753.0,86752.0,0.13183223]
[1765948265216,0.24206329,86755.0,86754.0,0.11359223]
[1765948265428,0.23053957,86753.0,86752.0,0.13183223]
[1765948267056,0.24206329,86755.0,86752.0,0.13183223]
[1765948267057,0.24206329,86755.0,86754.0,0.11359223]
[1765948267270,0.00025343,86761.0,86760.0,0.11359223]
[1765948267886,0.00025343,86761.0,86760.0,0.3441132]
[1765948268721,0.23177175,86761.0,86760.0,0.11359223]
[1765948269087,0.00225343,86761.0,86760.0,0.11359223]
[1765948271078,0.00225343,86761.0,86760.0,0.1152051]
[1765948271512,0.00225343,86761.0,86760.0,0.11359223]
[1765948271720,0.23055286,86748.0,86747.0,0.02881263]
[1765948271924,0.23055286,86748.0,86747.0,0.16064486]
[1765948272886,0.23055286,86748.0,86747.0,0.16164486]
[1765948273667,0.23055286,86748.0,86747.0,0.16264486]
[1765948274450,0.23055286,86748.0,86747.0,0.11459223]
[1765948274655,0.23055286,86748.0,86747.0,0.13283223]
[1765948274802,0.23055286,86748.0,86747.0,0.13183223]
[1765948276024,0.23155286,86748.0,86747.0,0.13183223]
[1765948276620,0.23255286,86748.0,86747.0,0.13183223]
[1765948279627,0.23255286,86748.0,86747.0,0.01824]
[1765948279830,0.23255286,86748.0,86747.0,0.36400062]
[1765948279831,0.002,86748.0,86747.0,0.36400062]
[1765948280235,0.00011203,86748.0,86747.0,0.65470062]
[1765948280680,0.00011203,86748.0,86747.0,0.76633986]
[1765948280875,0.00025343,86761.0,86760.0,0.3441132]
[1765948281082,0.00025343,86761.0,86760.0,0.3623532]
[1765948281691,0.00025343,86761.0,86760.0,0.13183223]
[1765948281936,0.00125343,86761.0,86760.0,0.13183223]
[1765948283262,0.00125343,86761.0,86760.0,0.01824]
[1765948283469,0.00125343,86761.0,86760.0,0.13177128]
[1765948284088,0.00125343,86761.0,86760.0,0.01824]
[1765948284496,0.00125343,86761.0,86760.0,0.13177128]
[1765948286400,0.05733853,86762.0,86761.0,0.11353128]
[1765948287036,0.24204058,86763.0,86762.0,0.11353128]
[1765948287230,0.0004,86768.0,86764.0,0.01152551]
[1765948287428,0.0004,86768.0,86767.0,0.11353128]
[1765948288427,0.0014,86768.0,86767.0,0.11353128]
[1765948289794,0.0004,86768.0,86767.0,0.11353128]
[1765948290123,0.0014,86768.0,86767.0,0.11353128]
[1765948290310,0.0024,86768.0,86767.0,0.11353128]
[1765948291645,0.01392498,86768.0,86767.0,0.11353128]
[1765948295158,0.23051034,86764.0,86763.0,0.11353128]
[1765948296349,0.23151034,86764.0,86763.0,0.13177128]
[1765948296550,0.23251034,86764.0,86763.0,0.13177128]
[1765948296748,0.002,86764.0,86763.0,0.13177128]
[1765948300627,0.002,86764.0,86763.0,0.25036587]
[1765948300832,0.002,86764.0,86763.0,0.36389715]
[1765948301032,0.002,86764.0,86763.0,0.13338415]
[1765948301897,0.001,86764.0,86763.0,0.13338415]
[1765948302128,0.0004,86768.0,86767.0,0.11353128]
[1765948303665,0.01152618,86759.0,86756.0,0.11353128]
[1765948303820,0.01152618,86759.0,86758.0,0.11353128]
[1765948304302,0.01152578,86762.0,86756.0,0.01152658]
[1765948304434,0.01152551,86764.0,86763.0,0.11353128]
[1765948304654,0.01152538,86765.0,86764.0,0.11353128]
[1765948306371,0.01152538,86765.0,86763.0,0.01824]
[1765948306372,0.01152405,86775.0,86767.0,0.11353128]
[1765948306574,0.01152472,86770.0,86767.0,0.11353128]
[1765948306783,0.23089972,86768.0,86767.0,0.11353128]
[1765948306956,0.01152525,86766.0,86765.0,0.11353128]
[1765948307304,0.24203274,86766.0,86765.0,0.11353128]
[1765948307929,0.01152525,86766.0,86765.0,0.11353128]
[1765948308133,0.2424247,86768.0,86767.0,0.11353128]
[1765948308330,0.0004,86768.0,86767.0,0.11353128]
[1765948308651,0.0004,86768.0,86763.0,0.01824]
[1765948308860,0.01152511,86767.0,86766.0,0.11353128]
[1765948309063,0.0004,86783.0,86782.0,0.11353128]
[1765948309285,0.0004,86783.0,86782.0,0.13177128]
[1765948309550,0.00084336,86783.0,86782.0,0.13177128]
[1765948309730,0.00084336,86783.0,86782.0,0.13338415]
[1765948311341,0.00084336,86783.0,86782.0,0.16219678]
[1765948311541,0.00084336,86783.0,86782.0,0.16319678]
[1765948311753,0.00084336,86783.0,86782.0,0.16419678]
[1765948318984,0.00084336,86783.0,86782.0,0.0506655]
[1765948319304,0.23130324,86783.0,86782.0,0.13377128]
[1765948320088,0.23130324,86783.0,86782.0,0.13277128]
[1765948320471,0.23130324,86783.0,86782.0,0.11453128]
[1765948320676,0.23130324,86783.0,86782.0,0.13277128]
[1765948320884,0.23130324,86783.0,86782.0,0.13177128]
[1765948321778,0.00084336,86783.0,86782.0,0.13177128]
[1765948321978,0.00084336,86783.0,86782.0,0.13338415]
[1765948322183,0.23045381,86786.0,86785.0,0.11353128]
[1765948322389,0.2419764,86786.0,86785.0,0.11514415]
[1765948322596,0.01152259,86786.0,86785.0,0.11514415]
[1765948323403,0.24196899,86788.0,86785.0,0.00161287]
[1765948323622,0.24196899,86788.0,86787.0,0.11353128]
[1765948324050,0.24194989,86795.0,86794.0,0.11353128]
[1765948324177,0.24194989,86795.0,86794.0,0.13177128]
[1765948325626,0.24294989,86795.0,86794.0,0.13177128]
[1765948326855,0.24394989,86795.0,86794.0,0.13177128]
[1765948328753,0.002,86795.0,86794.0,0.13338415]
[1765948328994,0.00237996,86795.0,86794.0,0.13338415]
[1765948329651,0.00137996,86795.0,86794.0,0.14720999]
[1765948329853,0.00137996,86795.0,86794.0,0.13338415]
[1765948330076,0.00137996,86795.0,86794.0,0.14720999]
[1765948330286,0.00137996,86795.0,86794.0,0.13338415]
[1765948330537,0.00137996,86795.0,86794.0,0.19547271]
[1765948330711,0.00037996,86795.0,86794.0,0.13338415]
[1765948331937,0.00037996,86795.0,86794.0,0.55945867]
[1765948332387,2.205e-05,86795.0,86794.0,0.55945867]
[1765948333302,2.205e-05,86795.0,86794.0,1.00557467]
[1765948333578,0.0001,86814.0,86807.0,0.11353128]
[1765948333822,0.01161887,86814.0,86807.0,0.26082166]
[1765948334027,0.00081151,86808.0,86807.0,0.91992917]
[1765948334231,0.00081151,86808.0,86807.0,0.50291517]
[1765948334603,0.00081151,86808.0,86807.0,0.62274017]
[1765948334929,0.00081151,86808.0,86807.0,0.62474017]
[1765948335409,0.00081151,86808.0,86807.0,0.62374017]
[1765948335974,0.00081151,86808.0,86807.0,0.62274017]
[1765948336176,0.00081151,86808.0,86807.0,0.65370398]
[1765948336695,0.00081151,86808.0,86807.0,0.65570398]
[1765948338260,0.00081151,86808.0,86807.0,0.72003314]
[1765948338382,0.00081151,86808.0,86807.0,0.53587898]
[1765948339985,0.00081151,86808.0,86807.0,0.50691517]
[1765948340398,0.00081151,86808.0,86807.0,0.45689678]
[1765948340801,0.00081151,86808.0,86807.0,0.14795678]
[1765948341019,0.00081151,86808.0,86807.0,0.45689678]
[1765948341221,0.00081151,86808.0,86807.0,0.51679928]
[1765948341437,0.00081151,86808.0,86807.0,0.45489678]
[1765948341645,0.00081151,86808.0,86807.0,0.45589678]
[1765948341855,0.00081151,86808.0,86807.0,1.57521417]
[1765948342025,0.00081151,86808.0,86807.0,1.57321417]
[1765948342232,4.731e-05,86808.0,86807.0,1.57321417]
[1765948342429,4.731e-05,86808.0,86807.0,1.57421417]
[1765948342638,4.731e-05,86808.0,86807.0,1.57321417]
[1765948342835,2.76e-06,86808.0,86807.0,1.57221417]
[1765948342996,2.76e-06,86808.0,86807.0,1.57421417]
[1765948343202,2.76e-06,86808.0,86807.0,1.57221417]
[1765948343497,2.76e-06,86808.0,86807.0,1.57621417]
[1765948343702,0.0001,86814.0,86813.0,0.45424967]
[1765948343897,0.0001,86814.0,86813.0,0.53832867]
[1765948344331,0.0001,86814.0,86813.0,0.45586254]
[1765948345322,0.0001,86814.0,86813.0,0.34533126]
[1765948345525,0.0001,86814.0,86813.0,0.11653128]
[1765948345735,0.0001,86814.0,86813.0,0.13477128]
[1765948346151,0.0001,86814.0,86813.0,0.13777128]
[1765948346576,0.0001,86814.0,86813.0,0.13477128]
[1765948346780,0.04657,86814.0,86813.0,0.13177128]
[1765948346987,0.0001,86814.0,86813.0,0.13177128]
[1765948347833,0.0001,86814.0,86813.0,0.13181044]
[1765948351503,0.23047758,86814.0,86813.0,0.13181044]
[1765948352384,0.0001,86814.0,86813.0,0.13181044]
[1765948354094,0.28002209,86801.0,86800.0,0.001]
[1765948354329,0.3153574,86799.0,86798.0,0.11357044]
[1765948354694,0.3153574,86799.0,86798.0,0.13181044]
[1765948354869,0.3901174,86799.0,86798.0,0.13181044]
[1765948355841,0.2667474,86799.0,86798.0,0.13181044]
[1765948356697,0.3141574,86799.0,86798.0,0.13181044]
[1765948356900,0.3840574,86799.0,86798.0,0.13181044]
[1765948357558,0.3151574,86799.0,86798.0,0.13181044]
[1765948358987,0.2677474,86799.0,86798.0,0.13181044]
[1765948359201,0.2324174,86799.0,86798.0,0.13181044]
[1765948359879,0.002,86799.0,86798.0,0.13181044]
[1765948360612,0.05304418,86800.0,86799.0,0.11357044]
[1765948362965,0.08939418,86800.0,86799.0,0.11357044]
[1765948363868,0.22298528,86800.0,86799.0,0.11357044]
[1765948364080,0.07032528,86800.0,86799.0,0.11357044]
[1765948364284,0.05304418,86800.0,86799.0,0.11357044]
[1765948365884,0.05304418,86800.0,86798.0,0.01824]
[1765948366102,0.05304418,86800.0,86799.0,0.11357044]
[1765948366521,0.24193465,86801.0,86800.0,0.11357044]
[1765948366902,0.2304174,86799.0,86798.0,0.01824]
[1765948367223,0.2778274,86799.0,86798.0,0.13181044]
[1765948368254,0.2778274,86799.0,86798.0,0.11357044]
[1765948368399,0.2778274,86799.0,86798.0,0.13181044]
[1765948368621,0.2788274,86799.0,86798.0,0.13181044]
[1765948369019,0.2314174,86799.0,86798.0,0.13181044]
[1765948370530,0.2304174,86799.0,86798.0,0.13181044]
[1765948371334,0.2314174,86799.0,86798.0,0.13181044]
[1765948374465,0.3142305,86779.0,86770.0,0.001]
[1765948374664,0.3142305,86779.0,86763.0,0.01824]
[1765948374665,0.3831305,86779.0,86763.0,0.01824]
[1765948375513,0.3831305,86779.0,86778.0,0.00343455]
[1765948376444,0.01191834,86818.0,86812.0,0.11358226]
[1765948376566,0.01191834,86818.0,86811.0,0.01824]
[1765948376567,0.0004,86818.0,86811.0,0.01824]
[1765948376770,0.01191834,86818.0,86813.0,0.11358226]
[1765948376971,0.0004,86818.0,86813.0,0.11358226]
[1765948377419,0.01177181,86816.0,86813.0,0.11358226]
[1765948379377,0.01177181,86816.0,86813.0,0.11458226]
[1765948380588,0.0002532,86816.0,86813.0,0.3449625]
[1765948380795,0.0002532,86816.0,86813.0,0.34657537]
[1765948385310,0.01177181,86816.0,86813.0,0.34657537]
[1765948385484,0.0002532,86816.0,86813.0,0.34657537]
[1765948387440,0.01177181,86816.0,86813.0,0.11458226]
[1765948388294,0.0002532,86816.0,86813.0,0.3449625]
[1765948388618,0.01177181,86816.0,86813.0,0.3439625]
[1765948388824,0.0002532,86816.0,86813.0,0.3439625]
[1765948393108,0.0002532,86816.0,86813.0,0.3622025]
[1765948393639,0.0002532,86816.0,86813.0,0.36381537]
[1765948393856,0.0002532,86816.0,86813.0,0.13343513]
[1765948394083,0.01177181,86816.0,86813.0,0.01985287]
[1765948394293,0.23047758,86814.0,86813.0,0.13182226]
[1765948394765,0.23047758,86814.0,86813.0,0.13282226]
[1765948395703,0.23047758,86814.0,86813.0,0.13382226]
[1765948396625,0.35037758,86814.0,86813.0,0.13382226]
[1765948398078,0.35037758,86814.0,86813.0,0.13282226]
[1765948398276,0.35137758,86814.0,86813.0,0.13182226]
[1765948398648,0.35137758,86814.0,86813.0,0.01824]
[1765948400432,0.31350085,86809.0,86808.0,0.11358226]
[1765948400640,0.38496085,86809.0,86808.0,0.11358226]
[1765948403570,0.38596085,86809.0,86808.0,0.11358226]
[1765948405220,0.23040412,86804.0,86803.0,0.13182226]
[1765948405585,0.23040412,86804.0,86803.0,0.01824]
[1765948405784,0.23040412,86804.0,86803.0,0.13182226]
[1765948406958,0.23140412,86804.0,86803.0,0.13182226]
[1765948409068,0.23140412,86804.0,86803.0,0.01824]
[1765948409069,0.35130412,86804.0,86803.0,0.01824]
[1765948409474,0.35130412,86804.0,86803.0,0.13182226]
[1765948411269,0.35130412,86804.0,86803.0,0.01824]
[1765948415455,0.27984412,86804.0,86803.0,0.01824]
[1765948415857,0.35207412,86804.0,86803.0,0.01824]
[1765948417797,0.35207412,86804.0,86803.0,0.13182226]
[1765948418027,0.08343,86795.0,86794.0,0.06200563]
[1765948418233,0.01152405,86775.0,86772.0,0.06200563]
[1765948418465,0.41266125,86775.0,86774.0,0.11358226]
[1765948418665,0.39537517,86775.0,86774.0,0.11358226]
[1765948420552,0.39637517,86775.0,86774.0,0.11358226]
[1765948421425,0.24300517,86775.0,86774.0,0.11358226]
[1765948423811,0.01152432,86773.0,86772.0,0.11358226]
[1765948424066,0.24201076,86773.0,86772.0,0.11358226]
[1765948424212,0.23050237,86767.0,86766.0,0.01824]
[1765948424580,0.2420227,86769.0,86768.0,0.11358226]
[1765948424915,0.01152445,86772.0,86768.0,0.11358226]
[1765948425116,0.01152445,86772.0,86771.0,0.11358226]
[1765948427886,0.2420232,86769.0,86768.0,0.11358226]
[1765948429149,0.04880405,86775.0,86768.0,0.11358226]
[1765948429150,0.01152219,86789.0,86783.0,0.01152299]
[1765948429409,0.01152219,86789.0,86768.0,0.00161287]
[1765948429410,0.24196642,86789.0,86788.0,0.11358226]
[1765948429571,0.01152259,86786.0,86785.0,0.11358226]
[1765948429969,0.01152286,86784.0,86783.0,0.11358226]
[1765948430788,0.23045988,86783.0,86781.0,0.01824]
[1765948432551,0.01152286,86784.0,86781.0,0.01824]
[1765948432727,0.01152259,86786.0,86783.0,0.01152299]
[1765948433240,0.01152259,86786.0,86785.0,0.11358226]
[1765948434179,0.01152233,86788.0,86787.0,0.11358226]
[1765948435442,0.01252233,86788.0,86787.0,0.11358226]
[1765948436129,0.001,86788.0,86787.0,0.11358226]
[1765948436328,0.002,86788.0,86787.0,0.11358226]
[1765948436532,0.002,86788.0,86787.0,0.12740921]
[1765948436729,0.002,86788.0,86787.0,0.12902208]
[1765948436938,0.002,86788.0,86787.0,0.11519513]
[1765948437734,0.001,86788.0,86787.0,0.11519513]
[1765948437939,0.01152286,86784.0,86781.0,0.01824]
[1765948438143,0.01152286,86784.0,86783.0,0.11358226]
[1765948438476,0.24198147,86784.0,86783.0,0.11358226]
[1765948441868,0.01152286,86784.0,86783.0,0.11358226]
[1765948455229,0.23045988,86783.0,86781.0,0.01824]
[1765948456187,0.23045988,86783.0,86782.0,0.11358226]
[1765948458346,0.23045988,86783.0,86782.0,0.06200563]
[1765948458582,0.12334,86782.0,86781.0,0.01824]
[1765948459038,0.23045988,86783.0,86781.0,0.01824]
[1765948459494,0.23045988,86783.0,86782.0,0.11358226]
[1765948460480,0.23145988,86783.0,86782.0,0.11358226]
[1765948460691,0.23045988,86783.0,86782.0,0.11358226]
[1765948461107,0.23145988,86783.0,86782.0,0.11358226]
[1765948466832,0.23145988,86783.0,86781.0,0.08024563]
[1765948467266,0.23145988,86783.0,86782.0,0.06200563]
[1765948467761,0.23045988,86783.0,86782.0,0.06200563]
[1765948468429,0.23145988,86783.0,86782.0,0.06200563]
[1765948469881,0.23145988,86783.0,86774.0,0.01152418]
[1765948469882,0.35380519,86781.0,86779.0,0.06200563]
[1765948470076,0.24198287,86783.0,86766.0,0.11358226]
[1765948470077,0.12334,86767.0,86766.0,0.11358226]
[1765948470522,0.15796,86767.0,86766.0,0.11358226]
[1765948471253,0.01152551,86764.0,86763.0,0.11358226]
[1765948471457,0.24203585,86764.0,86763.0,0.11358226]
[1765948471652,0.24203585,86764.0,86761.0,0.00197322]
[1765948471653,0.23051566,86762.0,86761.0,0.00197322]
[1765948471868,0.24203585,86764.0,86763.0,0.11358226]
[1765948472073,0.01152511,86767.0,86763.0,0.00161287]
[1765948472419,0.01152485,86769.0,86768.0,0.11358226]
[1765948473598,0.01252485,86769.0,86768.0,0.11358226]